Cogmind - Beta 12 @@@ ROGUE MODE // 2023.11.21 @ 09:53:17 Player: Dosh Result: Destroyed by G-34 Mercenary with Small Laser Performance ------------- Evolutions (0) 0 Regions Visited (2) 400 Robots Destroyed (21) 105 Value Destroyed (387) 387 Prototype IDs (2) 40 Alien Tech Used (0) 0 Bonus (0) 0 TOTAL SCORE: 932 Bonus ------- None Cogmind --------- Core Integrity 0/250 Matter 284/300 Energy 100/100 System Corruption 5% Temperature Cool (6) Movement Core (350) Ox6 Location -10/Mines Parts ------- > --- POWER (1) -------- (None) > --- PROPULSION (2) --- (None) > --- UTILITY (2) ------ Large Storage Unit Signal Interpreter > --- WEAPON (2) ------- (None) > --- INVENTORY (15) --- Light Ion Engine Light Treads Small Storage Unit Signal Interpreter Propulsion Shielding Peak State ------------ > --- POWER ------------ Light Ion Engine > --- PROPULSION ------- Wheel Compact Wheel > --- UTILITY ---------- Large Storage Unit Signal Interpreter > --- WEAPON ----------- Heavy Battle Rifle Grenade Launcher > --- INVENTORY -------- Light Ion Engine Light Treads Small Storage Unit Signal Interpreter Propulsion Shielding Light Assault Rifle [Rating: 10] Favorites ----------- Power Light Ion Engine Engine Light Ion Engine Propulsion Light Treads Treads Light Treads Wheel Compact Wheel Utility Large Storage Unit Device Structural Scanner Storage Large Storage Unit Processor Signal Interpreter Weapon Heavy Battle Rifle Ballistic Gun Heavy Battle Rifle Launcher Grenade Launcher Build | -11 -10 -10 ------- Run | Jun Mat Min Slots Evolved . | . . . Power . | . . . Propulsion . | . . . Utility . | . . . Weapon . | . . . Parts Attached 18 | 6 8 4 Power 2 | 1 1 . Engine 2 | 1 1 . Core . | . . . Reactor . | . . . Propulsion 4 | 2 2 . Treads 2 | 2 . . Leg . | . . . Wheel 2 | . 2 . Hover . | . . . Flight . | . . . Utility 4 | 1 3 . Device 1 | . 1 . Storage 2 | 1 1 . Processor 1 | . 1 . Hackware . | . . . Protection . | . . . Artifact . | . . . Weapon 8 | 2 2 4 Energy Gun . | . . . Energy Cannon . | . . . Ballistic Gun 6 | 2 2 2 Ballistic Cannon . | . . . Launcher 2 | . . 2 Special Weapon . | . . . Impact Weapon . | . . . Slashing Weapon . | . . . Piercing Weapon . | . . . Special Melee Weapon . | . . . Unidentified Prototypes . | . . . Parts Lost 10 | . 4 6 Power 2 | . 1 1 Propulsion 3 | . 1 2 Utility 1 | . 1 . Weapon 4 | . 1 3 Highest Loss Streak 6 | . 4 6 To Critical Strikes . | . . . Average Slot Usage (%) 89 | . 80 96 Engine 13 | . 12 13 Treads 10 | . 22 . Wheel 15 | . 1 27 Device 3 | . 8 . Storage 14 | . 14 14 Processor 9 | . 2 14 Ballistic Gun 15 | . 17 13 Launcher 6 | . . 11 Naked Turns . | . . . Heaviest Build 30 | 13 29 30 Greatest Support 40 | 40 40 26 Greatest Overweight (x) 1 | . 1 1 Average Overweight (x) . | . . . Largest Inventory Capacity 15 | 8 15 15 Average Capacity 13 | 6 11 15 Most Carried 7 | 3 7 7 Average Carried 5 | 1 4 6 Final Capacity 15 | 8 15 15 Final Carried 6 | 3 6 5 Class Distribution -------------------- 100% | Mutant Dominant Class ---------------- Mutant | -10/Materials Mutant | -10/Mines Resources | -11 -10 -10 ----------- Run | Jun Mat Min Matter Collected 648 | 223 231 194 Remotely . | . . . Salvage Created 467 | . 297 170 Parts 42 | . 29 13 Haulers Intercepted . | . . . Recyclers Shooed 3 | . 3 . Parts Field Recycled . | . . . Retrieved Matter . | . . . Parts Self-Destructed . | . . . Prevented . | . . . Kills | -11 -10 -10 ------- Run | Jun Mat Min Combat Hostiles Destroyed 18 | . 10 8 Melee 2 | . 1 1 Guns 12 | . 9 3 AOE 4 | . . 4 Classes Destroyed 7 | . 5 2 Worker 1 | . 1 . Tunneler 1 | . . 1 Recycler 1 | . 1 . Watcher 1 | . 1 . Swarmer 11 | . 8 3 Grunt 6 | . 2 4 Assembled 1 | . . 1 Best Kill Streak 3 | . 3 3 Combat Bots Only 3 | . 3 3 Max Kills in Single Turn 3 | . 1 3 Gunslinging . | . . . Exploded 3 | . . 3 Melee 1 | . 1 1 Uniques/NPCs Destroyed . | . . . Combat | -11 -10 -10 -------- Run | Jun Mat Min Damage Taken 1216 | . 633 583 Core 261 | . 82 179 Absorbed by Shields . | . . . Core Remaining (%) 100 | 100 . . Volleys Fired 96 | . 71 25 Largest 2 | . 2 2 Hottest 63 | . 40 63 Shots Fired 117 | . 82 35 Gun 107 | . 82 25 Cannon . | . . . Launcher 10 | . . 10 Special . | . . . Kinetic 107 | . 82 25 Thermal . | . . . Explosive 10 | . . 10 Electromagnetic . | . . . Robot Hit Streak 7 | . 7 3 Robot Miss Streak 7 | . 3 7 Penetration Max . | . . . Secondary Targets 3 | . 3 . Max Gunslinging Chain 1 | . 1 . Shots Hit Robots 53 | . 45 8 Core Hits 33 | . 18 15 Critical Kills 1 | . . 1 Critical Parts Destroyed . | . . . Critical Strikes 1 | . . 1 Destroy 1 | . . 1 Melee Attacks . | . . . Impact . | . . . Slashing . | . . . Piercing . | . . . Sneak Attacks . | . . . Combat Hostiles . | . . . Follow-up Attacks . | . . . Damage Inflicted 957 | . 527 430 Guns 635 | . 509 126 Cannons . | . . . Explosions 274 | . . 274 Melee . | . . . Ramming 48 | . 18 30 Kinetic 635 | . 509 126 Thermal 135 | . . 135 Explosive 139 | . . 139 Electromagnetic . | . . . Impact . | . . . Slashing . | . . . Piercing . | . . . Highest Corruption 5 | . 2 5 Average Corruption 2 | . 1 2 Corruption Purged . | . . . Corruption Blocked . | . . . Effects 26 | . 11 15 Message Errors 7 | . 1 6 Matter Fused 6 | . 3 3 Heat Flow Errors 4 | . 2 2 Energy Discharges 3 | . 1 2 Parts Rejected 1 | . 1 . Data Loss (minor) 2 | . 2 . Data Loss (major) 1 | . . 1 Misfires 1 | . 1 . Alerts 1 | . . 1 Overload Shots . | . . . Overflow Damage . | . . . Projectiles . | . . . Explosions . | . . . Melee . | . . . Knockbacks . | . . . Impact . | . . . Kinetic . | . . . Secondary . | . . . Self-Inflicted Damage 106 | . . 106 Shots 4 | . . 4 Rammed 19 | . 4 15 Targets Rammed 20 | . 5 15 Kicked . | . . . Crushed 1 | . 1 . Highest Temperature 221 | . 139 221 Average Temperature 35 | . 29 38 Received Heat Transfer 386 | . 174 212 Siege Activations . | . . . Robots Corrupted . | . . . Combat Hostiles . | . . . Parts Fried . | . . . Impact Corruptions . | . . . Robots Melted . | . . . Combat Hostiles . | . . . Parts Melted . | . . . Heat Transferred 200 | . . 200 Parts Sabotaged . | . . . Parts Stolen . | . . . Parts Stripped . | . . . Power Chain Reactions . | . . . Missiles Intercepted . | . . . Alert | -11 -10 -10 ------- Run | Jun Mat Min Peak Influence 215 | . 157 215 Initial 11 | . . 11 Average 45 | . 44 50 Maximum Alert Level 1 | . . 1 Low Security (%) 91 | 100 100 84 Level 1 8 | . . 15 Level 2 . | . . . Level 3 . | . . . Level 4 . | . . . Level 5 . | . . . High Security . | . . . Max Security . | . . . Squads Dispatched 2 | . 2 . Investigation . | . . . Extermination . | . . . Reinforcement 2 | . 2 . Assault . | . . . Garrison . | . . . Intercept . | . . . Searches Triggered . | . . . Construction Impeded . | . . . Haulers Reinforced . | . . . Active Scanning Responses . | . . . Cargo Convoy Interrupts . | . . . Stealth | -11 -10 -10 --------- Run | Jun Mat Min Distress Signals 2 | . 2 . Communications Jammed . | . . . Distress Signals . | . . . Times Spotted 29 | . 18 11 Peak Tracking Total 5 | . 5 3 Tactical Retreats 1 | . 1 . Traps | -11 -10 -10 ------- Run | Jun Mat Min Traps Triggered 2 | . 2 . Indirectly . | . . . Trap Hack Attempts . | . . . Triggered . | . . . Disarmed . | . . . Reprogrammed . | . . . Reused . | . . . Traps Extracted . | . . . Installed . | . . . Triggered . | . . . Machines | -11 -10 -10 ---------- Run | Jun Mat Min Machines Disabled 3 | . . 3 Max in Single Turn 3 | . . 3 Machines Repaired . | . . . Machines Sabotaged . | . . . Overloaded Fab Kills . | . . . Hacking | -11 -10 -10 --------- Run | Jun Mat Min Machines Accessed 3 | . 3 . Terminals 2 | . 2 . Fabricators . | . . . Repair Stations . | . . . Recycling Units 1 | . 1 . Scanalyzers . | . . . Garrison Access . | . . . Total Hacks 12 | . 12 . Successful 5 | . 5 . Failed 7 | . 7 . Catastrophic 2 | . 2 . Database Lockouts . | . . . Manual . | . . . Terminals 9 | . 9 . Fabricators . | . . . Repair Stations . | . . . Recycling Units 3 | . 3 . Scanalyzers . | . . . Garrison Access . | . . . Terminal Hacks 3 | . 3 . Prototype ID Bank 1 | . 1 . Branch Access Points 1 | . 1 . Unreport Threat 1 | . 1 . Fabricator Hacks . | . . . Repair Station Hacks . | . . . Recycling Unit Hacks 2 | . 2 . Retrieve Components 2 | . 2 . Scanalyzer . | . . . Garrison Access Hacks . | . . . Unauthorized Hacks . | . . . Terminals . | . . . Fabricators . | . . . Repair Stations . | . . . Recycling Units . | . . . Scanalyzers . | . . . Garrison Access . | . . . Data Cores Recovered . | . . . Used . | . . . Hacking Detections 3 | . 3 . Full Trace Events . | . . . Feedback Events . | . . . Feedback Blocked . | . . . Robot Schematics Acquired . | . . . Robots Built . | . . . Authchips . | . . . Time . | . . . Total Robot Build Rating . | . . . Part Schematics Acquired . | . . . Parts Built . | . . . Authchips . | . . . Time . | . . . Total Part Build Rating . | . . . Parts Repaired . | . . . Time . | . . . Parts Recycled . | . . . Recycled Matter . | . . . Retrieved Matter . | . . . Retrieved Components 11 | . 11 . Parts Scanalyzed . | . . . Part Schematics Acquired . | . . . Parts Damaged . | . . . Bothacking | -11 -10 -10 ------------ Run | Jun Mat Min Used RIF Installer . | . . . Robots Hacked . | . . . Non-combat . | . . . Combat . | . . . Robot Hacks Applied . | . . . Relay Couplers Released . | . . . Fabnet Peak Effective % . | . . . Robots Rewired . | . . . Allies Hacked . | . . . Hacks Repelled . | . . . Allies | -11 -10 -10 -------- Run | Jun Mat Min Total Allies . | . . . Largest Group . | . . . Highest-Rated Group . | . . . Highest-Rated Ally . | . . . Total Orders . | . . . Ally Attacks . | . . . Total Damage . | . . . Kills . | . . . Allies Corrupted . | . . . Allies Melted . | . . . Intel | -11 -10 -10 ------- Run | Jun Mat Min Robot Analysis Total . | . . . Derelict Logs Recovered 1 | . . 1 Drone Launches . | . . . Drone Recoveries . | . . . Exploration | -11 -10 -10 ------------- Run | Jun Mat Min Turns Passed 2182 | 89 948 1145 Spaces Moved 871 | 53 469 349 Core 6 | 6 . . Treads 447 | 47 400 . Legs . | . . . Wheels 418 | . 69 349 Hover . | . . . Flight . | . . . Fastest Speed 50 | 50 90 90 Average Speed 139 | 147 164 103 Slowest Speed 240 | 160 240 115 Overloaded Moves . | . . . Propulsion Burnouts . | . . . Robots Hopped . | . . . Cave-ins Triggered . | . . . Exploration Rate (%) 55 | 4 81 80 Regions Visited 2 Branch Regions 1 Pre-discovered Areas . | . . . Known Exits Taken 1 | . 1 . Unknown Exits Taken 1 | 1 . . Scrap Searched 1 | . . 1 Spaces Dug . | . . . Terrain Destroyed 50 | . . 50 Melee . | . . . Projectile 2 | . . 2 AOE 48 | . . 48 Terrain Rammed . | . . . Walls Destroyed . | . . . Machines Disabled . | . . . Actions | -11 -10 -10 --------- Run | Jun Mat Min Total 1712 | 61 564 1087 Wait 695 | . 4 691 Move 869 | 52 468 349 Hop . | . . . Pick Up 7 | 3 4 . Fast Attach 13 | 6 5 2 Attach 3 | . 2 1 Detach 3 | . 2 1 Swap 2 | . 1 1 Drop 4 | . 2 2 Fire 96 | . 71 25 Melee . | . . . Ram 15 | . . 15 Kick . | . . . Crush 5 | . 5 . Escape Stasis . | . . . Rewire . | . . . Trap . | . . . Miscellaneous . | . . . Route ------- -11/Junkyard -10/Materials (discovered 5 exits: *Mat x3 / *Min x2) -10/Mines (discovered 1 exit: *Mat) History --------- Turn | Location | Event 3 | -11/Junkyard | Discovered new exit (range 15) 90 | -11/Junkyard | Entered Materials 119 | -10/Materials | Identified exit to Mines 310 | -10/Materials | Build established: Mutant 406 | -10/Materials | Discovered new exit (range 16) 753 | -10/Materials | Discovered new exit (range 15) 771 | -10/Materials | Lost 4 parts (1p1n1u1w) 930 | -10/Materials | Discovered new exit (range 4) 949 | -10/Materials | Identified exit to Materials 1038 | -10/Materials | Entered Mines 1079 | -10/Mines | A weapon hastily lodged in a ceiling crevice suddenly fell to the ground 1209 | -10/Mines | Discovered exit to Materials (range 13) 1255 | -10/Mines | Core integrity fell below 50% 1347 | -10/Mines | Learned Materials interactive machine intel 1354 | -10/Mines | Excavation squad dispatched 1354 | -10/Mines | A large section of the Mines collapsed 1604 | -10/Mines | Excavation squad dispatched 1854 | -10/Mines | Excavation squad dispatched 2166 | -10/Mines | Core integrity fell below 20% 2183 | -10/Mines | Destroyed by G-34 Mercenary with Small Laser Last Messages --------------- 02147_ Dropped Lgt. Assault Rifle. 02149_ Acquired Lgt. Assault Rifle. 02155_ Lgt. Assault Rifle destroyed. 02157_ Slammed into G-34 Mercenary. 02161_ Destabilizing: System corrupted (+1). 02161_ Wheel destroyed. 02162_ Lgt. Ion Engine destroyed. 02162_ Slammed into G-34 Mercenary. 02162_ Destabilizing: System corrupted (+2). 02163_ Slammed into G-34 Mercenary. 02164_ VAWUFYDMQSTL/N5W|JH ZIT&LEQJGMHPZB74 02165_ Slammed into G-34 Mercenary. 02166_ G-34 Mercenary destroyed. 02167_ Acquired 50 matter. 02168_ Slammed into G-34 Mercenary. 02169_ Com. Wheel destroyed. 02169_ Slammed into G-34 Mercenary. 02176_ Destabilizing: System interference. 02176_ Signal Interpreter temporarily disabled. 02180_ Slammed into G-34 Mercenary. Map ----- +----------------------------------------------------+ | | | | | | | | | | | | | | | | | | | | | | | | | | | | | | | | | ????????????????????????????????????????? | | ????###?????????????????????????????????? | | ???## ##???????????????????????????????? | | ???# ##?????????????????????????????? | | ???# ##????????????????????????????? | | ????# ##???????????????????????????? | | ?????# !##??????????????????????????? | | ?????## * #####??????????????????????? | | ??????## == #??????????????????????? | | ??????## ####@#??????# ???????????? | | ?????## ####g###???# ##?????????? | | ?????# #???# ####??????? | | ????# ###### #???# #??????? | | ????# #????# #??## #??????? | | ????# #????# ## ## # #??????? | | ????# ????# ## ## ???????? | | ????## ???# ##### ##???????? | | ?????# ???# #???? #???????? | | ?????# ??# #???? ##??????? | | ?????# ?# #???? # ##?????? | | ?????## #?# ###### ####?????? | | ??????## ###?# ""##?????? | | ???????## ##???# " "#?????? | | ????????#####????##### " #?????? | | ?????????????????????# ##?????? | | ?????????????????????# % ##??????? | | ?????????????????####### ####???????? | | ?############??### ##?### ##??????????? | | ?# #?## ##### ##???????????? | | ?# """ """ ### """ "#????????????? | | ?# """ """ ## """ #????????????? | | ?# """ """ ## """ ######????????????? | | ?# ### #?????????????????? | | ?# """ #?###### #?????????????????? | +----------------------------------------------------+ Best States ------------- Heat Dissipation 25 Energy Generation 10 Energy Capacity 250 Matter Stores 300 Matter Capacity 300 Sight Range 16 Terrain Scan Density 10 Evasion (%) 42 Recoil Reduction 2 Item Schematics ----------------- None Robot Schematics ------------------ None Fabricated ------------ Nothing Alien Tech Used ----------------- None Achievements -------------- None Challenges ------------ None Game ------ Seed DroneVortexBox Manual? 0 Play Time 00:08:41 Cumulative 15.1 hours Start 2023.11.21 @ 09:45:10 End 2023.11.21 @ 09:53:17 Sessions 1 Manual Loads 0 Difficulty Rogue Special Mode None Game No. 36 Rogue 36 Adventurer 0 Explorer 0 Win Type - Total 0 Types 0/0/0/0/0/0/0/0/0 Lore% 17 Gallery% 21 Achievement% 17 Wizard Run 0 Options --------- ASCII 0 Keyboard 1 Movement Numpad Keybinds 0 Fullscreen 2 Font 18/SmallcapsGlow Map View 76x50 Tactical HUD 1 Map Filters NONE Filters NONE Steam 1 RUN: b9e87b65-5724-4e37-a765-8f2f8ae731d0